bitfinex-derivatives/quotes_ETHF0:USTF0_20250210
["timestamp","ask_amount","ask_price","bid_price","bid_amount"]
[1739185156134,4.04947209,2648.7,2648.5,0.0038074]
[1739185157535,1.99983402,2648.6,2647.7,0.5837]
[1739185157840,3.2078,2648.0,2647.5,0.576]
[1739185158138,1.1887,2647.9,2647.4,41.3837]
[1739185158737,1.19435718,2647.9,2647.6,1.99983402]
[1739185159134,1.19435718,2647.9,2647.4,0.5837]
[1739185159335,3.2078,2647.7,2647.3,43.37583402]
[1739185159529,3.2078,2647.7,2647.3,41.376]
[1739185159728,3.2078,2647.7,2647.3,0.576]
[1739185160844,0.5816,2647.6,2647.3,0.576]
[1739185161337,0.5816,2647.6,2647.3,2.57583402]
[1739185162038,0.5816,2647.6,2647.3,0.576]
[1739185163441,0.5816,2647.6,2647.1,3.5465]
[1739185163640,0.5816,2647.6,2647.1,4.1236]
[1739185164041,0.5816,2647.6,2647.1,1.1636]
[1739185165243,3.2078,2647.7,2647.3,1.99983402]
[1739185165931,0.00565718,2647.9,2647.4,0.5538]
[1739185166339,0.00565718,2647.9,2647.5,0.5825]
[1739185166539,0.00565718,2647.9,2647.6,0.5838]
[1739185171737,0.00565718,2647.9,2647.6,2.58363402]
[1739185173838,0.00565718,2647.9,2647.6,5.79143402]
[1739185174342,0.00565718,2647.9,2647.6,2.58363402]
[1739185180651,0.00565718,2647.9,2647.6,5.79143402]
[1739185183653,3.2078,2648.8,2647.9,0.75519]
[1739185183844,3.2078,2648.8,2648.3,1.99983402]
[1739185184147,3.7769,2648.8,2648.4,0.5717]
[1739185186851,3.7769,2648.8,2648.5,0.5638]
[1739185187051,3.7769,2648.8,2648.5,1.1572]
[1739185187448,0.5691,2648.8,2648.5,1.1572]
[1739185190355,3.7769,2648.8,2648.4,3.5317]
[1739185190856,3.7769,2648.8,2648.4,0.5717]
[1739185195255,0.5691,2648.8,2648.4,0.5717]
[1739185199853,3.7769,2648.8,2648.4,0.5717]
[1739185200049,3.7769,2648.8,2648.3,2.0054912]
[1739185200451,0.75499,2648.7,2648.3,0.00565718]
[1739185200651,3.2078,2648.5,2648.3,0.00565718]
[1739185200861,1.1604,2648.4,2648.3,0.00565718]
[1739185201059,1.7235,2648.4,2648.3,0.00565718]
[1739185201561,1.7235,2648.4,2648.3,2.0054912]
[1739185201753,1.1277,2648.4,2648.3,2.0054912]
[1739185203159,3.7986,2648.8,2648.3,2.0054912]
[1739185203373,0.606,2648.7,2648.6,1.99983402]
[1739185203665,0.606,2648.7,2648.3,0.00565718]
[1739185203666,0.606,2648.7,2648.3,2.0054912]
[1739185210857,0.606,2648.7,2648.3,0.00565718]
[1739185211063,0.606,2648.7,2648.6,1.99983402]
[1739185211568,0.606,2648.7,2648.3,2.0054912]
[1739185211774,1.1783,2648.7,2648.3,2.0054912]
[1739185212866,3.96286,2648.4,2648.3,0.00565718]
[1739185213068,3.2078,2648.4,2648.3,0.00565718]
[1739185214867,4.3861,2648.7,2648.3,0.00565718]
[1739185215066,1.1783,2648.7,2648.3,2.0054912]
[1739185215267,1.1783,2648.7,2648.4,0.596]
[1739185215467,1.1783,2648.7,2648.4,1.2091]
[1739185216172,4.3861,2648.7,2648.3,0.00565718]
[1739185217061,3.2078,2648.4,2648.3,0.00565718]
[1739185219174,9.96286,2648.4,2647.7,3.2078]
[1739185219372,0.5571,2648.3,2647.7,3.2078]
[1739185219667,0.5611,2648.2,2647.7,3.2078]
[1739185219867,4.94162559,2648.2,2647.7,3.2078]
[1739185220267,0.5611,2648.2,2647.7,3.2078]
[1739185221369,0.5611,2648.2,2648.0,1.99983402]
[1739185221572,0.5571,2648.3,2648.0,1.99983402]
[1739185221877,0.5571,2648.3,2648.1,0.6145]
[1739185222468,0.6015,2648.2,2648.1,0.6145]
[1739185224277,3.2078,2648.4,2648.1,0.6145]
[1739185224570,3.2078,2648.7,2648.3,5.20763402]
[1739185224775,0.00565718,2648.9,2648.6,5.20763402]
[1739185224978,0.00565718,2648.9,2648.7,1.1808]
[1739185225574,0.00565718,2648.9,2648.7,41.9808]
[1739185226072,0.00565718,2648.9,2648.7,41.3697]
[1739185226276,3.2078,2648.8,2648.3,2.60813402]
[1739185226479,3.2078,2648.5,2648.1,2.96]
[1739185229073,3.2078,2648.5,2647.5,0.29919196]
[1739185229074,3.2078,2648.2,2647.7,1.99983402]
[1739185229279,3.2078,2647.9,2647.4,2.56293402]
[1739185231580,3.2078,2647.5,2647.0,40.8]
[1739185231778,3.2078,2647.2,2647.0,40.8]
[1739185232175,3.2078,2647.2,2646.8,1.99983402]
[1739185233480,1.7992,2647.4,2646.8,1.99983402]
[1739185235683,1.7992,2647.4,2646.9,0.6147]
[1739185236486,0.5791,2647.4,2647.1,1.99983402]
[1739185236793,0.5791,2647.4,2647.2,0.5908]
[1739185238085,0.5791,2647.4,2647.3,40.8]
[1739185238281,0.5791,2647.4,2646.6,8.95192947]
[1739185238282,1.1442,2647.4,2646.8,1.99983402]
[1739185238486,3.2078,2647.2,2646.8,1.99983402]
[1739185238692,3.2078,2647.2,2646.8,42.79983402]
[1739185239398,3.2078,2647.2,2646.8,1.99983402]
[1739185245599,3.2078,2647.2,2647.1,1.99983402]
[1739185247894,3.2078,2647.2,2646.8,1.99983402]
[1739185250903,3.2078,2647.2,2646.3,0.30201798]
[1739185250904,3.2078,2646.9,2646.5,1.99983402]
[1739185251111,1.1584,2646.8,2646.5,1.99983402]
[1739185251302,1.7393,2646.8,2646.3,3.2078]
[1739185253406,3.2078,2646.4,2645.9,4.95983402]
[1739185253711,1.7396,2646.3,2645.9,4.95983402]
[1739185255309,1.7396,2646.3,2645.9,2.96]
[1739185256711,1.7396,2646.3,2645.9,4.95983402]
[1739185257711,3.2078,2646.1,2645.9,4.95983402]
[1739185257911,3.2078,2646.1,2645.9,1.99983402]
[1739185258311,3.2078,2646.1,2645.6,3.14083402]
[1739185258814,3.21346797,2646.1,2645.6,3.14083402]
[1739185259814,3.21346797,2646.1,2645.6,2.56003402]
[1739185260409,0.00566797,2646.1,2645.9,1.99983402]
[1739185261209,3.21346797,2646.1,2645.9,1.99983402]
[1739185261513,0.5751,2646.0,2645.9,1.99983402]
[1739185261707,0.00566797,2646.1,2645.9,1.99983402]
[1739185261909,0.00566797,2646.1,2646.0,0.5825]
[1739185262807,0.00566797,2646.1,2646.0,1.1728]
[1739185263014,1.148,2646.7,2646.0,1.1728]
[1739185263213,1.148,2646.7,2646.4,1.99983402]
[1739185263413,4.3558,2646.7,2646.4,1.99983402]
[1739185263609,0.5768,2646.6,2646.4,1.99983402]
[1739185264013,1.148,2646.7,2646.4,1.99983402]
[1739185267019,0.00566797,2646.8,2646.6,3.2078]
[1739185267218,0.00566797,2646.8,2646.7,3.14373402]
[1739185268421,0.00566797,2646.8,2646.4,1.99983402]
[1739185268617,3.2078,2646.7,2646.4,1.99983402]
[1739185268818,0.5557,2646.6,2646.4,1.99983402]
[1739185269017,1.1642,2646.6,2646.4,1.99983402]
[1739185269213,1.1642,2646.6,2646.0,3.2078]
[1739185269214,1.7221,2646.6,2645.4,3.2078]
[1739185269420,3.2078,2646.4,2645.8,2.00550199]
[1739185269614,3.2078,2646.1,2645.8,2.00550199]
[1739185269817,0.5557,2646.0,2645.8,2.00550199]
[1739185270023,1.7221,2646.0,2645.8,2.00550199]
[1739185270325,1.7221,2646.0,2645.8,0.00566797]
[1739185270624,1.7221,2646.0,2645.8,1.99983402]
[1739185271020,1.7221,2646.0,2645.8,1.49983402]
[1739185272423,1.7221,2646.0,2645.5,2.56533402]
[1739185274427,3.2078,2645.8,2645.2,1.99983402]
[1739185279037,3.2078,2645.8,2645.5,1.99983402]
[1739185279232,3.2078,2645.8,2645.6,0.6104]
[1739185280025,3.2078,2645.8,2645.2,1.99983402]
[1739185280334,3.2078,2645.8,2645.2,2.61023402]
[1739185281227,3.2078,2645.5,2645.2,2.61023402]
[1739185281431,0.5697,2645.4,2645.2,2.61023402]
[1739185281627,0.5697,2645.4,2645.2,1.99983402]
[1739185282632,0.6076,2645.3,2645.2,1.99983402]
[1739185284332,0.6076,2645.3,2644.9,43.36913402]
[1739185284639,0.6076,2645.3,2644.7,3.2078]
[1739185284640,1.99983402,2645.0,2643.7,1.99983402]
[1739185284834,1.99983402,2645.0,2643.9,0.5847]
[1739185284835,3.2078,2644.4,2643.9,0.5847]
[1739185285029,1.1712,2644.3,2643.9,0.5847]
[1739185286030,1.1712,2644.3,2644.0,1.99983402]
[1739185286738,3.2078,2644.4,2644.0,1.99983402]
[1739185287239,3.2078,2644.4,2644.0,2.59263402]
[1739185287732,3.2078,2644.4,2644.3,1.99983402]
[1739185289232,3.2078,2644.7,2644.3,1.99983402]
[1739185289726,3.2078,2644.7,2644.0,0.5928]
[1739185289727,3.2078,2644.4,2644.0,0.5928]
[1739185290031,3.2078,2644.7,2643.9,41.3847]
[1739185290231,0.5648,2644.6,2644.1,1.99983402]
[1739185290632,3.2078,2644.7,2644.4,1.99983402]
[1739185292235,4.14069408,2644.6,2644.1,1.99983402]
[1739185292430,3.2078,2644.7,2644.1,1.99983402]
[1739185293229,4.35491699,2644.6,2644.1,1.99983402]
[1739185293527,3.2078,2644.7,2644.1,1.99983402]
[1739185293528,0.5981,2644.5,2644.1,1.99983402]
[1739185298643,3.2078,2644.7,2644.1,1.99983402]
[1739185298644,3.2078,2644.7,2644.4,1.99983402]
[1739185299341,0.5752,2645.3,2644.5,0.5917]
[1739185299534,0.5752,2645.3,2645.0,1.99983402]
[1739185302746,3.2078,2645.1,2644.1,5.20763402]
[1739185303037,3.2078,2644.6,2644.1,1.99983402]
[1739185303243,5.9572109,2645.2,2644.1,1.99983402]
[1739185303244,3.2078,2644.3,2644.1,1.99983402]
[1739185303444,3.2078,2644.3,2643.5,9.79578084]
[1739185303445,3.2078,2644.3,2643.8,1.99983402]
[1739185305641,3.20320918,2644.3,2643.8,1.99983402]
[1739185308042,3.20320918,2644.3,2644.1,1.99983402]
[1739185309343,3.20320918,2644.3,2644.2,40.8]
[1739185310140,3.20320918,2644.3,2644.1,1.99983402]
[1739185310845,3.20320918,2644.3,2644.1,42.79983402]
[1739185311043,3.20320918,2644.3,2644.1,1.99983402]
[1739185313148,3.20320918,2644.3,2643.8,1.99983402]
[1739185314847,3.20320918,2644.3,2644.1,1.99983402]
[1739185319056,3.20320918,2644.3,2643.8,1.99983402]
[1739185320855,3.20320918,2644.3,2643.5,1.99983402]
[1739185321056,4.02261792,2644.2,2643.8,1.99983402]
[1739185321250,3.2078,2644.3,2643.8,1.99983402]
[1739185321449,3.21346797,2644.3,2643.8,1.99983402]
[1739185321644,3.21346797,2644.3,2643.9,1.192]
[1739185322356,3.21346797,2644.3,2644.1,1.99983402]
[1739185324152,3.21346797,2644.3,2643.9,1.192]
[1739185324456,3.21346797,2644.3,2643.8,1.99983402]
[1739185324853,3.2078,2644.0,2643.6,0.5708]
[1739185325051,1.7637,2643.9,2643.6,0.5708]
[1739185326360,1.7637,2643.9,2643.5,5.76163402]
[1739185329052,1.7637,2643.9,2643.5,2.55383402]
[1739185332256,1.7637,2643.9,2643.5,1.99983402]
[1739185334265,3.21346797,2644.3,2643.8,1.99983402]
[1739185334468,3.21346797,2644.3,2644.1,1.99983402]
[1739185336565,3.21346797,2644.3,2643.9,0.5977]
[1739185337562,0.00566797,2644.3,2644.1,1.99983402]
[1739185337756,0.00566797,2644.3,2644.2,1.32855]
[1739185337958,0.5776,2645.4,2644.2,1.1335]
[1739185337959,3.2078,2645.3,2644.2,1.1335]
[1739185338159,3.2078,2645.3,2644.9,1.99983402]
[1739185338367,3.2078,2645.3,2645.0,0.5661]
[1739185339059,1.14186797,2645.4,2645.0,0.5661]
[1739185340259,0.58326797,2645.4,2645.0,0.5661]
[1739185340857,0.00566797,2645.4,2645.0,0.5661]
[1739185343267,0.00566797,2645.4,2644.9,0.00566797]
[1739185343268,3.2078,2645.3,2644.9,0.00566797]
[1739185343965,3.95448464,2645.2,2644.9,0.00566797]
[1739185344171,3.2078,2645.0,2644.9,0.00566797]
[1739185344662,7.25326316,2645.3,2644.9,2.00550199]
[1739185344867,3.2078,2645.3,2644.9,2.00550199]
[1739185345473,3.2078,2645.3,2644.6,1.99983402]
[1739185346872,3.2078,2645.3,2644.9,1.99983402]
[1739185347075,3.2078,2645.3,2645.0,1.1679]
[1739185348376,3.2078,2645.3,2645.0,0.6089]
[1739185349173,3.2078,2645.3,2644.9,1.99983402]
[1739185349377,3.2078,2645.3,2644.6,0.5776]
[1739185349378,4.15381268,2645.2,2644.6,2.57743402]
[1739185349573,3.2078,2645.0,2644.6,1.99983402]
[1739185349875,3.2078,2645.0,2644.3,1.711]
[1739185349876,0.5599,2644.9,2644.3,1.99983402]
[1739185350077,5.28891268,2644.9,2644.3,2.60423402]
[1739185351275,1.1351,2644.9,2644.3,2.60423402]
[1739185352070,0.5752,2644.9,2644.6,1.99983402]
[1739185352679,3.2078,2645.0,2644.6,1.99983402]
[1739185352875,3.2078,2645.0,2644.7,0.6083]
[1739185353082,4.3675,2645.3,2644.8,0.5545]
[1739185357573,1.1597,2645.3,2644.9,1.99983402]
[1739185358279,1.1597,2645.3,2644.9,42.79983402]
[1739185358787,0.00566797,2645.4,2645.2,1.99983402]
[1739185359181,0.00566797,2645.4,2645.3,0.6005]
[1739185359682,0.00566797,2645.4,2645.3,1.1946]
[1739185360492,0.00566797,2645.4,2645.2,1.99983402]
[1739185361186,0.00566797,2645.4,2645.0,0.5698]
[1739185362682,0.00566797,2645.4,2644.9,1.99983402]
[1739185364891,0.00566797,2645.4,2645.2,1.99983402]
[1739185365092,0.00566797,2645.4,2645.3,0.592]
[1739185365696,0.00566797,2645.4,2645.3,1.1551]
[1739185365994,0.00566797,2645.4,2645.3,0.592]
[1739185369290,3.2078,2646.1,2645.3,0.592]
[1739185369498,3.2078,2646.1,2645.7,1.99983402]
[1739185369697,3.2078,2646.1,2645.8,1.1731]
[1739185373099,3.2078,2646.1,2645.9,40.8]
[1739185373700,3.2078,2646.1,2645.8,1.1731]
[1739185374990,3.2078,2646.1,2645.7,2.00550199]
[1739185376503,0.00566797,2646.2,2645.7,2.00550199]
[1739185376799,3.2078,2645.9,2645.4,1.99983402]
[1739185377004,1.7089,2645.8,2645.4,1.99983402]
[1739185377201,3.2078,2645.5,2645.1,1.99983402]
[1739185378198,4.9167,2645.8,2645.1,1.99983402]
[1739185379701,3.2078,2645.7,2645.1,1.99983402]
[1739185380096,3.2078,2645.7,2645.1,5.20763402]
[1739185380605,1.7089,2645.8,2645.1,5.20763402]
[1739185381101,1.7089,2645.8,2645.1,1.99983402]
[1739185381699,1.7089,2645.8,2645.1,5.20763402]
[1739185382211,0.00566797,2646.2,2644.9,41.69355961]
[1739185382212,0.00566797,2646.2,2645.7,1.99983402]
[1739185382412,1.1947,2646.1,2645.7,1.99983402]
[1739185382603,1.1947,2646.1,2645.7,2.60353402]
[1739185383097,0.5756,2646.0,2645.7,2.60353402]
[1739185383297,0.5756,2646.0,2645.7,1.99983402]
[1739185383916,0.5756,2646.0,2645.7,2.61033402]
[1739185385114,0.5756,2646.0,2645.7,5.81813402]
[1739185385316,0.5756,2646.0,2645.7,2.61033402]
[1739185385811,0.5756,2646.0,2645.7,1.99983402]
[1739185386015,3.2078,2645.9,2645.1,3.2078]
[1739185386218,3.2078,2645.9,2645.2,0.6101]
[1739185387313,3.2078,2645.6,2645.1,5.20763402]
[1739185387514,1.1705,2645.5,2645.1,5.20763402]
[1739185387709,1.7315,2645.5,2645.1,5.20763402]
[1739185387913,1.7315,2645.5,2645.1,1.99983402]
[1739185389913,3.2078,2645.9,2645.1,1.99983402]
[1739185390214,0.5918,2645.8,2645.4,1.99983402]
[1739185390516,1.1769,2645.8,2645.4,1.99983402]
[1739185393217,1.1769,2645.8,2645.7,1.99983402]
[1739185393520,0.5855,2646.0,2645.7,1.99983402]
[1739185393818,0.6135,2646.1,2645.7,1.99983402]
[1739185394007,1.804,2646.1,2645.7,1.99983402]
[1739185395317,5.0118,2646.1,2645.7,1.99983402]
[1739185396722,5.0118,2646.1,2645.8,0.5678]
[1739185398332,4.417,2646.1,2645.8,0.5678]
[1739185398829,0.00566797,2646.2,2646.0,1.99983402]
[1739185401127,0.00566797,2646.2,2646.1,0.6103]
[1739185401326,3.2078,2647.2,2646.5,0.75559]
[1739185401628,3.2078,2647.7,2646.9,1.99983402]
[1739185401822,3.2078,2647.7,2647.5,1.99983402]
[1739185402322,3.2078,2647.7,2647.2,1.99983402]
[1739185402632,3.2078,2647.7,2647.3,0.00566797]
[1739185403523,3.2078,2647.4,2647.3,0.00566797]
[1739185406026,4.8788,2647.8,2647.3,0.00566797]
[1739185406428,4.37022229,2647.7,2647.3,0.00566797]
[1739185407226,4.8788,2647.8,2647.3,0.00566797]
[1739185408428,3.2078,2647.8,2647.3,0.00566797]
[1739185408728,3.2078,2647.8,2647.3,1.16586797]
[1739185408927,3.2078,2647.8,2647.3,0.00566797]
[1739185409626,3.2078,2647.8,2647.4,40.8]
[1739185409829,3.2078,2647.8,2647.3,0.00566797]
[1739185412127,3.2078,2647.5,2647.3,0.00566797]
[1739185412326,1.1729,2647.4,2647.3,0.00566797]
[1739185413832,0.5612,2647.4,2647.3,0.00566797]
[1739185414133,1.1729,2647.4,2647.3,0.00566797]
[1739185415732,5.37498025,2647.4,2647.3,0.00566797]
[1739185416141,12.13033025,2647.4,2646.6,1.99983402]
[1739185416333,3.2078,2647.1,2646.6,1.99983402]
[1739185416737,3.2078,2646.8,2646.3,1.99983402]
[1739185416935,1.1896,2646.7,2646.3,1.99983402]
[1739185417233,1.1896,2646.7,2646.0,45.04493402]
[1739185417234,3.2078,2646.5,2646.0,45.04493402]
[1739185417631,3.21346797,2646.5,2646.0,42.79983402]
[1739185417831,3.21346797,2646.5,2646.0,40.8]
[1739185418033,3.21346797,2646.5,2645.8,0.5993]
[1739185418637,3.21346797,2646.5,2645.9,40.8]
[1739185418935,3.21346797,2646.5,2646.0,1.99983402]
[1739185421630,3.21346797,2646.5,2646.1,0.5799]
[1739185422335,0.00566797,2646.5,2646.3,1.99983402]
[1739185422538,0.00566797,2646.5,2646.4,0.5795]
[1739185427540,3.2078,2647.2,2646.4,7.33513]
[1739185427841,3.2078,2647.2,2646.9,1.99983402]
[1739185428641,3.2078,2647.2,2647.0,0.6033]
[1739185428837,0.00566797,2647.3,2647.0,0.6033]
[1739185429141,0.00566797,2647.3,2647.2,1.99983402]
[1739185429540,0.00566797,2647.3,2647.2,42.79983402]
[1739185434745,0.00566797,2647.3,2647.2,1.99983402]
[1739185439539,0.00566797,2647.3,2647.2,2.59773402]
[1739185440744,0.00566797,2647.3,2647.2,1.99983402]
[1739185444044,3.2078,2648.0,2647.2,1.99983402]
[1739185444240,3.2078,2648.0,2647.7,1.99983402]
[1739185444445,3.2078,2648.8,2647.8,43.6197]
[1739185444641,1.1194,2648.7,2648.6,1.99983402]
[1739185447948,0.584,2648.8,2648.6,1.99983402]
[1739185448153,0.00566797,2648.9,2648.6,1.99983402]
[1739185449849,0.00566797,2648.9,2648.6,6.87263402]
[1739185450054,1.1704,2649.4,2648.6,6.87263402]
[1739185450352,1.1704,2649.4,2649.3,1.99983402]
[1739185452256,0.00566797,2649.6,2649.3,1.99983402]
[1739185453352,0.60436797,2649.6,2649.3,1.99983402]
[1739185453554,1.19596797,2649.6,2649.3,1.99983402]
[1739185455453,0.00389076,2649.5,2649.3,1.99983402]
[1739185457747,0.00389076,2649.5,2649.3,2.58023402]
[1739185458151,0.00389076,2649.5,2649.3,4.24323402]
[1739185458346,1.7911,2650.4,2649.3,4.24323402]
[1739185458548,1.7911,2650.4,2650.0,1.99983402]
[1739185461955,4.9989,2650.4,2650.0,1.99983402]
[1739185463363,4.09708361,2650.3,2649.9,0.00566797]
[1739185463662,3.2078,2650.1,2649.9,0.00566797]
[1739185463860,3.2078,2650.1,2649.7,1.50550199]
[1739185466756,3.2078,2650.1,2649.6,0.00566797]
[1739185468863,3.2078,2650.1,2649.7,1.99983402]
[1739185469465,3.2078,2650.1,2649.7,2.58883402]
[1739185470464,1.7911,2650.4,2649.7,2.58883402]
[1739185470465,4.9989,2650.4,2649.7,2.58883402]
[1739185470666,4.9989,2650.4,2649.7,1.99983402]
[1739185470866,4.35221148,2650.3,2649.7,1.99983402]
[1739185472073,4.35221148,2650.3,2649.6,0.00566797]
[1739185472670,5.10675148,2650.3,2649.6,0.00566797]
[1739185473372,4.35221148,2650.3,2649.6,0.00566797]
[1739185473568,5.10674148,2650.3,2649.6,0.00566797]
[1739185473768,4.35221148,2650.3,2649.6,0.00566797]
[1739185473969,5.10673148,2650.3,2649.6,0.00566797]
[1739185474170,0.75456,2650.2,2649.6,0.00566797]
[1739185474573,3.2078,2649.8,2649.6,0.00566797]
[1739185474772,1.7369,2649.7,2649.6,0.00566797]
[1739185477970,2.914,2650.3,2649.6,0.00566797]
[1739185478171,2.914,2650.3,2650.0,1.99983402]
[1739185478372,1.7872,2650.4,2650.0,1.99983402]
[1739185478568,1.7872,2650.4,2650.1,40.8]
[1739185479277,1.7872,2650.4,2650.0,1.99983402]
[1739185483473,3.21346797,2650.5,2650.3,1.99983402]
[1739185483873,3.21346797,2650.5,2650.4,0.5612]
[1739185484676,0.00566797,2650.5,2650.4,0.5612]
[1739185491374,0.00566797,2650.5,2650.3,1.99983402]
[1739185492981,3.21346797,2650.5,2650.1,3.2078]
[1739185493282,0.6001,2650.4,2650.1,3.2078]
[1739185500887,0.6001,2650.4,2650.0,1.99983402]
[1739185501293,0.5768,2650.3,2650.0,1.99983402]
[1739185501996,0.5981,2650.2,2650.0,1.99983402]
[1739185502496,0.5981,2650.2,2649.8,3.7933]
[1739185503597,3.8059,2650.2,2649.7,1.99983402]
[1739185505497,3.8059,2650.2,2649.8,0.5707]
[1739185507107,3.8059,2650.2,2650.0,1.99983402]
[1739185507403,0.5768,2650.3,2650.0,1.99983402]
[1739185508302,1.1441,2650.3,2650.0,1.99983402]
[1739185510599,0.6001,2650.4,2650.0,1.99983402]
[1739185511898,0.6001,2650.4,2650.1,40.8]
[1739185512102,0.5784,2650.3,2650.1,40.8]
[1739185513107,0.00566797,2650.5,2650.1,40.8]
[1739185513406,0.00566797,2650.5,2650.3,1.99983402]
[1739185513595,0.00566797,2650.5,2650.4,0.569]
[1739185515805,0.00566797,2650.5,2650.4,1.1693]
[1739185518708,1.1929,2651.3,2650.4,1.1693]
[1739185518913,1.1929,2651.3,2650.8,5.20763402]
[1739185519209,1.1929,2651.3,2650.9,0.6093]
[1739185522514,1.1929,2651.3,2651.0,0.5939]
[1739185522917,1.1929,2651.3,2651.1,1.99983402]
[1739185523213,0.00566797,2651.4,2651.1,1.99983402]
[1739185523912,0.6047,2651.8,2651.2,3.2078]
[1739185524112,3.2078,2652.0,2651.5,5.20763402]
[1739185524306,0.5744,2652.1,2651.6,1.1588]
[1739185524511,0.5744,2652.1,2651.9,1.99983402]
[1739185525318,0.5677,2652.0,2651.9,1.99983402]
[1739185525820,0.5677,2652.0,2651.6,43.95863402]
[1739185526015,0.5744,2652.1,2651.9,1.99983402]
[1739185529319,0.00565718,2652.3,2652.0,1.99983402]
[1739185529513,1.99983402,2653.5,2652.0,1.99983402]
[1739185529514,3.2078,2652.9,2652.1,3.8174]
[1739185529716,3.2078,2652.9,2652.8,1.99983402]
[1739185531117,1.16961747,2653.1,2652.8,1.99983402]
[1739185531818,1.16961747,2653.1,2652.8,2.56193402]
[1739185533314,0.00371747,2653.1,2652.8,2.56193402]
[1739185533523,0.00371747,2653.1,2653.0,3.2078]
[1739185533825,0.00371747,2653.1,2653.0,44.0078]
[1739185534427,0.5843,2653.9,2653.0,44.0078]
[1739185534629,0.5843,2653.9,2653.5,1.99983402]
[1739185537124,3.7921,2653.9,2653.5,1.99983402]
[1739185537326,3.7921,2653.9,2653.2,1.99983402]
[1739185538326,3.7921,2653.9,2653.5,1.99983402]
[1739185538726,0.5843,2653.9,2653.8,1.99983402]
[1739185539925,0.5843,2653.9,2653.5,1.99983402]
[1739185540125,3.2078,2653.8,2653.5,1.99983402]
[1739185540328,0.5843,2653.9,2653.5,1.99983402]
[1739185540531,0.5843,2653.9,2653.8,1.99983402]
[1739185544033,3.2078,2654.1,2653.8,1.99983402]
[1739185545235,3.2078,2654.1,2653.9,40.8]
[1739185548035,1.1901,2654.5,2654.0,3.2078]
[1739185548241,0.6012,2654.8,2654.4,1.99983402]
[1739185548539,1.7574,2654.8,2654.4,1.99983402]
[1739185551344,3.2078,2654.9,2654.7,1.99983402]
[1739185551936,0.5589,2654.8,2654.7,1.99983402]
[1739185556233,3.2078,2654.9,2654.7,1.99983402]
[1739185556433,3.2078,2654.9,2654.8,0.5821]
[1739185557445,3.2078,2654.9,2654.7,1.99983402]
[1739185561845,3.2078,2654.9,2654.4,1.99983402]
[1739185562356,3.2078,2654.6,2654.1,1.99983402]
[1739185562551,1.7198,2654.5,2654.1,1.99983402]
[1739185562743,1.7198,2654.5,2654.0,3.79495718]
[1739185562744,3.2078,2654.3,2654.0,0.00565718]
[1739185563452,3.96119,2654.3,2654.0,0.00565718]
[1739185563647,4.18303696,2654.2,2654.0,0.00565718]
[1739185566749,3.2078,2654.3,2654.1,1.99983402]
[1739185567341,1.7198,2654.5,2654.2,0.6053]
[1739185567545,1.7198,2654.5,2654.4,1.99983402]
[1739185567942,1.7198,2654.5,2654.4,1.49983402]
[1739185568538,3.2078,2655.1,2654.4,4.70763402]
[1739185568749,3.2078,2655.1,2654.7,1.99983402]
[1739185568750,1.1217,2654.8,2654.7,1.99983402]
[1739185569048,0.5787,2655.0,2654.7,1.99983402]
[1739185569649,0.5787,2655.0,2654.8,0.599]
[1739185570246,4.3295,2655.4,2654.8,3.8068]
[1739185570549,4.3295,2655.4,2655.3,1.99983402]
[1739185571740,0.5643,2655.4,2655.3,1.99983402]
[1739185571942,3.2078,2655.8,2655.3,1.99983402]
[1739185571943,0.5664,2655.8,2655.3,1.99983402]
[1739185572146,3.2078,2656.1,2655.6,1.99983402]
[1739185572347,3.2078,2656.1,2655.4,3.8068]
[1739185572348,3.2078,2656.1,2656.0,1.99983402]
[1739185572652,3.2078,2656.1,2655.0,1.99983402]
[1739185572653,4.15299594,2656.0,2655.0,1.99983402]
[1739185572847,15.42293398,2656.1,2655.6,0.00565718]
[1739185572848,6.15282996,2656.1,2655.6,0.00565718]
[1739185573048,3.2078,2655.7,2655.6,0.00565718]
[1739185574547,9.96078,2655.7,2655.6,0.00565718]
[1739185574747,13.20378232,2655.7,2654.7,1.99983402]
[1739185574954,3.2078,2655.2,2654.7,1.99983402]
[1739185575649,3.2078,2655.2,2655.0,1.99983402]
[1739185575848,3.21345718,2655.2,2655.0,1.99983402]
[1739185576244,3.21345718,2655.2,2654.7,2.0054912]
[1739185577349,3.2078,2654.9,2654.7,2.0054912]
[1739185577559,0.609,2654.8,2654.7,0.00565718]
[1739185577857,1.7778,2654.8,2654.7,0.00565718]
[1739185578347,1.7778,2654.8,2654.1,1.99983402]
[1739185578348,6.79290087,2654.8,2654.1,1.99983402]
[1739185578551,3.2078,2654.5,2653.8,1.99983402]
[1739185578749,3.2078,2654.1,2653.9,0.45034515]
[1739185578951,3.2078,2654.1,2653.8,1.99983402]
[1739185580549,3.2078,2654.1,2653.7,0.00565718]
[1739185580752,0.5815,2654.0,2653.7,0.00565718]
[1739185582260,4.00425122,2653.9,2653.7,0.00565718]
[1739185582457,4.75776122,2653.9,2653.7,0.00565718]
[1739185582653,4.00425122,2653.9,2653.7,0.00565718]
[1739185583654,0.5815,2654.0,2653.7,0.00565718]
[1739185584053,1.33498,2654.0,2653.7,0.00565718]
[1739185584254,3.99051049,2653.9,2653.7,0.00565718]
[1739185584659,0.5815,2654.0,2653.7,0.00565718]
[1739185586267,0.581,2654.1,2653.8,1.99983402]
[1739185586456,3.2078,2654.8,2653.9,3.65848555]
[1739185586660,3.2078,2654.8,2654.2,1.99983402]
[1739185586964,7.29416891,2654.8,2654.5,1.99983402]
[1739185587161,3.2078,2654.8,2654.5,1.99983402]
[1739185588358,3.2078,2654.8,2654.2,1.99983402]
[1739185589065,3.2078,2654.8,2654.2,42.79983402]
[1739185589967,4.9614,2655.1,2654.5,1.99983402]
[1739185590168,3.2078,2655.1,2654.5,1.99983402]
[1739185590370,3.2078,2655.1,2654.8,1.99983402]
[1739185591373,0.00565718,2655.2,2654.8,1.99983402]
[1739185591778,0.00565718,2655.2,2655.1,1.99983402]
[1739185592480,0.00565718,2655.2,2654.9,0.5815]
[1739185592880,0.00565718,2655.2,2654.7,3.2078]
[1739185593475,3.2078,2654.9,2654.5,1.99983402]
[1739185594381,3.2078,2654.6,2654.3,0.5815]
[1739185594882,0.5738,2654.8,2654.3,0.5815]